{"text_format":"1","workbook":"xlsx","n_sheets":2,"sheets":["BoQ1","Macros"],"not_rendered":{"charts":0,"images":0,"macros":1,"external_links":3,"defined_names":35,"comments":1,"pivot_tables":0},"unopened":[],"bounds":{"document_bytes":16777216,"sheet_cells":100000,"rows_first":2000,"rows_last":500,"rows_between":2000,"halvings":0,"cell_chars":16384,"cell_head_chars":4096},"cells_cut":0,"cells_raw":0,"read":"whole","date_system":"1900"}

{"sheet":"BoQ1","index":0,"n_rows":28,"n_cols":243,"rows_kept":28,"cut":false,"hidden":true,"merged":[[8,0,8,54],[27,2,27,54],[0,0,0,11],[3,0,3,54],[4,0,4,54],[5,0,5,54],[6,0,6,54],[7,1,7,54]]}
[{"$f":"B2&\" BoQ\"","v":"Percentage BoQ"}]
["BoQ_Ver3.1","Percentage","Normal","INR Only","INR"]
["Select, At Par, Excess (+), Less (-)",null,"IOCL"]
["Tender Inviting Authority: Superinteding Engineer, Institute Works Department, IIT(BHU), Varanasi"]
["Name of Work: Supplying and jointing kit of 3.5x300 sqmm LT Power cable. Near water tank & Supply and laying  of   power cable to Chemistry deptt, physics etc. IIT (BHU)"]
["Contract No: IIT(BHU)/IWD/"]
[" "]
["Name of the Bidder/ Bidding Firm / Company :"]
["PRICE SCHEDULE\n(This BOQ template must not be modified/replaced by the bidder and the same should be uploaded after filling the relevant columns, else the bidder is liable to be rejected for this tender. Bidders are allowed to enter the Bidder Name and Values only )"]
["NUMBER #","TEXT #","TEXT #","NUMBER #","TEXT #","NUMBER","NUMBER","TEXT","TEXT #","NUMBER #","TEXT#","TEXT #","NUMBER #","NUMBER","NUMBER","NUMBER","NUMBER","TEXT","TEXT","NUMBER","NUMBER","NUMBER","NUMBER","TEXT","TEXT","NUMBER","NUMBER","NUMBER","NUMBER","TEXT","TEXT","NUMBER","NUMBER","NUMBER","NUMBER","TEXT","TEXT","NUMBER","NUMBER","NUMBER","NUMBER","TEXT","TEXT","NUMBER","NUMBER","NUMBER #","NUMBER #","TEXT","TEXT","NUMBER #","NUMBER #","DATE","NUMBER #","NUMBER #","TEXT #"]
["Sl.\nNo.","Item Description","Item Code / Make","Quantity","Units","Estimated Rate\n in\nRs.      P",null,null,"Addition / Deduction","Addition / Deduction Values","Currency Convertion against each Item","Quoted Currency in INR / Other Currency","BASIC RATE In Figures To be entered by the Bidder \nRs.      P\n ","Excise Duty","VAT","Freight Charges ( Unloading & Stacking)","Any Other Taxes/Duties/Levies",null,null,"Other Taxes 2","IIIrd Party i.e DGS&D / RITES etc Inspection Charges @0.34%+Service Tax","Less for Cenvat Credit,if any respect of Supplies Under full Excise Duty Category ",null,null,null,null,null,null,null,null,null,null,null,null,null,null,null,null,null,null,null,null,null,null,null,null,null,null,null,null,null,null,"TOTAL AMOUNT  With Taxes\n           in\n      Rs.      P","TOTAL AMOUNT  With Taxes","TOTAL AMOUNT \nIn Words"]
[1,2,3,4,5,6,7,8,9,10,11,12,13,14,15,16,17,18,19,20,21,22,23,24,25,26,27,28,29,30,31,32,33,34,35,36,37,38,39,40,41,42,43,44,45,46,47,48,49,50,51,52,7,54,8]
[0.1,"xx","BI01010001010000000000000515BI0100001112",null,null,null,null,null,null,null,null,null,null,null,null,null,null,null,null,null,null,null,null,null,null,null,null,null,null,null,null,null,null,null,null,null,null,null,null,null,null,null,null,null,null,null,null,null,null,null,null,null,null,null,null,null,null,null,null,null,null,null,null,null,null,null,null,null,null,null,null,null,null,null,null,null,null,null,null,null,null,null,null,null,null,null,null,null,null,null,null,null,null,null,null,null,null,null,null,null,null,null,null,null,null,null,null,null,null,null,null,null,null,null,null,null,null,null,null,null,null,null,null,null,null,null,null,null,null,null,null,null,null,null,null,null,null,null,null,null,null,null,null,null,null,null,null,null,null,null,null,null,null,null,null,null,null,null,null,null,null,null,null,null,null,null,null,null,null,null,null,null,null,null,null,null,null,null,null,null,null,null,null,null,null,null,null,null,null,null,null,null,null,null,null,null,null,null,null,null,null,null,null,null,null,null,null,null,null,null,null,null,null,null,null,null,null,null,null,null,null,null,null,null,null,null,null,null,null,null,null,null,null,null,0.1,"xx","BI01010001010000000000000515BI0100001112",null,null,"Construction of chamber for 100mm sluices valve","item1",10,"1 Nos"]
[1.1000000000000001,"Supplying and making end termination with brass compression gland and aluminium lugs for following size of PVC insulated and PVC sheathed / XLPE aluminium conductor cable of 1.1 kV grade as required.\n3½ X 70 sq. mm (38 mm)","BI01010001010000000000000515BI0100001114",4,"Nos.",368,null,null,"Excess(+)",{"$f":"IF(I14=\"Less(-)\",-1,1)","v":1},"Full Conversion","INR",null,null,null,null,null,null,null,null,null,null,null,null,null,null,null,null,null,null,null,null,null,null,null,null,null,null,null,null,null,null,null,null,null,null,null,null,null,null,null,null,{"$f":"total_amount_ba($B$2,$D$2,D14,F14,J14,K14,M14)","v":1472},{"$f":"BA14+SUM(N14:AZ14)","v":1472},{"$f":"SpellNumber(L14,BB14)","v":"INR  One Thousand Four Hundred & Seventy Two  Only"},null,null,null,null,null,null,null,null,null,null,null,null,null,null,null,null,null,null,null,null,null,null,null,null,null,null,null,null,null,null,null,null,null,null,null,null,null,null,null,null,null,null,null,null,null,null,null,null,null,null,null,null,null,null,null,null,null,null,null,null,null,null,null,null,null,null,null,null,null,null,null,null,null,null,null,null,null,null,null,null,null,null,null,null,null,null,null,null,null,null,null,null,null,null,null,null,null,null,null,null,null,null,null,null,null,null,null,null,null,null,null,null,null,null,null,null,null,null,null,null,null,null,null,null,null,null,null,null,null,null,null,null,null,null,null,null,null,null,null,null,null,null,null,null,null,null,null,null,null,null,null,null,null,null,null,null,null,null,null,null,null,null,null,null,null,null,null,null,null,null,null,null,null,null,null,null,null,null,null,1.1000000000000001,"Supplying and making end termination with brass compression gland and aluminium lugs for following size of PVC insulated and PVC sheathed / XLPE aluminium conductor cable of 1.1 kV grade as required.\n3½ X 70 sq. mm (38 mm)","BI01010001010000000000000515BI0100001114",4,"Nos.","Construction of chamber for 100mm sluice plates","item2",213,"Nos"]
[1.2,"3½ X 120 sq. mm (45 mm)","BI01010001010000000000000515BI0100001115",4,"Nos.",489,null,null,"Excess(+)",1,"Full Conversion","INR",null,null,null,null,null,null,null,null,null,null,null,null,null,null,null,null,null,null,null,null,null,null,null,null,null,null,null,null,null,null,null,null,null,null,null,null,null,null,null,null,1956,1956,"INR  One Thousand Nine Hundred & Fifty Six  Only",null,null,null,null,null,null,null,null,null,null,null,null,null,null,null,null,null,null,null,null,null,null,null,null,null,null,null,null,null,null,null,null,null,null,null,null,null,null,null,null,null,null,null,null,null,null,null,null,null,null,null,null,null,null,null,null,null,null,null,null,null,null,null,null,null,null,null,null,null,null,null,null,null,null,null,null,null,null,null,null,null,null,null,null,null,null,null,null,null,null,null,null,null,null,null,null,null,null,null,null,null,null,null,null,null,null,null,null,null,null,null,null,null,null,null,null,null,null,null,null,null,null,null,null,null,null,null,null,null,null,null,null,null,null,null,null,null,null,null,null,null,null,null,null,null,null,null,null,null,null,null,null,null,null,null,null,null,null,null,null,null,null,null,null,null,null,null,null,null,null,null,null,null,null,null,null,null,null,null,1.2,"3½ X 120 sq. mm (45 mm)","BI01010001010000000000000515BI0100001115",4,"Nos.","Construction of chamber for 100mm sluices valve","item3",10,"Nos"]
[1.3,"3½ X 185 sq. mm (50 mm)","BI01010001010000000000000515BI0100001116",4,"Nos.",702,null,null,"Excess(+)",1,"Full Conversion","INR",null,null,null,null,null,null,null,null,null,null,null,null,null,null,null,null,null,null,null,null,null,null,null,null,null,null,null,null,null,null,null,null,null,null,null,null,null,null,null,null,2808,2808,"INR  Two Thousand Eight Hundred & Eight  Only",null,null,null,null,null,null,null,null,null,null,null,null,null,null,null,null,null,null,null,null,null,null,null,null,null,null,null,null,null,null,null,null,null,null,null,null,null,null,null,null,null,null,null,null,null,null,null,null,null,null,null,null,null,null,null,null,null,null,null,null,null,null,null,null,null,null,null,null,null,null,null,null,null,null,null,null,null,null,null,null,null,null,null,null,null,null,null,null,null,null,null,null,null,null,null,null,null,null,null,null,null,null,null,null,null,null,null,null,null,null,null,null,null,null,null,null,null,null,null,null,null,null,null,null,null,null,null,null,null,null,null,null,null,null,null,null,null,null,null,null,null,null,null,null,null,null,null,null,null,null,null,null,null,null,null,null,null,null,null,null,null,null,null,null,null,null,null,null,null,null,null,null,null,null,null,null,null,null,null,1.3,"3½ X 185 sq. mm (50 mm)","BI01010001010000000000000515BI0100001116",4,"Nos.","Supplying, Conveying and fixing spls. Including ea","item4",10,"Nos"]
[2,"Providing, laying and fixing following dia G.I. pipe (medium class) in ground complete with G.I. fittings including trenching (75 cm deep) and re-filling etc. as required\n100 mm dia","BI01010001010000000000000515BI0100001118",15,"Mtr",1113,null,null,"Excess(+)",1,"Full Conversion","INR",null,null,null,null,null,null,null,null,null,null,null,null,null,null,null,null,null,null,null,null,null,null,null,null,null,null,null,null,null,null,null,null,null,null,null,null,null,null,null,null,16695,16695,"INR  Sixteen Thousand Six Hundred & Ninety Five  Only",null,null,null,null,null,null,null,null,null,null,null,null,null,null,null,null,null,null,null,null,null,null,null,null,null,null,null,null,null,null,null,null,null,null,null,null,null,null,null,null,null,null,null,null,null,null,null,null,null,null,null,null,null,null,null,null,null,null,null,null,null,null,null,null,null,null,null,null,null,null,null,null,null,null,null,null,null,null,null,null,null,null,null,null,null,null,null,null,null,null,null,null,null,null,null,null,null,null,null,null,null,null,null,null,null,null,null,null,null,null,null,null,null,null,null,null,null,null,null,null,null,null,null,null,null,null,null,null,null,null,null,null,null,null,null,null,null,null,null,null,null,null,null,null,null,null,null,null,null,null,null,null,null,null,null,null,null,null,null,null,null,null,null,null,null,null,null,null,null,null,null,null,null,null,null,null,null,null,null,2,"Providing, laying and fixing following dia G.I. pipe (medium class) in ground complete with G.I. fittings including trenching (75 cm deep) and re-filling etc. as required\n100 mm dia","BI01010001010000000000000515BI0100001118",15,"Mtr","Construction of chamber for 100mm sluice plates","item2",213,"Nos"]
[3.1,"Laying of one number PVC insulated and PVC sheathed / XLPE power cable of 1.1 KV grade of following size Direct in ground including excution sand cushing, protective covering and refilling trench etc. \nAbove 95 sq. mm and upto 185 sq. mm","BI01010001010000000000000515BI0100001120",106,"Metre",181,null,null,"Excess(+)",1,"Full Conversion","INR",null,null,null,null,null,null,null,null,null,null,null,null,null,null,null,null,null,null,null,null,null,null,null,null,null,null,null,null,null,null,null,null,null,null,null,null,null,null,null,null,19186,19186,"INR  Nineteen Thousand One Hundred & Eighty Six  Only",null,null,null,null,null,null,null,null,null,null,null,null,null,null,null,null,null,null,null,null,null,null,null,null,null,null,null,null,null,null,null,null,null,null,null,null,null,null,null,null,null,null,null,null,null,null,null,null,null,null,null,null,null,null,null,null,null,null,null,null,null,null,null,null,null,null,null,null,null,null,null,null,null,null,null,null,null,null,null,null,null,null,null,null,null,null,null,null,null,null,null,null,null,null,null,null,null,null,null,null,null,null,null,null,null,null,null,null,null,null,null,null,null,null,null,null,null,null,null,null,null,null,null,null,null,null,null,null,null,null,null,null,null,null,null,null,null,null,null,null,null,null,null,null,null,null,null,null,null,null,null,null,null,null,null,null,null,null,null,null,null,null,null,null,null,null,null,null,null,null,null,null,null,null,null,null,null,null,null,3.1,"Laying of one number PVC insulated and PVC sheathed / XLPE power cable of 1.1 KV grade of following size Direct in ground including excution sand cushing, protective covering and refilling trench etc. \nAbove 95 sq. mm and upto 185 sq. mm","BI01010001010000000000000515BI0100001120",106,"Metre","Supplying, Conveying and fixing spls. Including ea","item4",10,"Nos"]
[3.2,"Above 95 sq. mm and upto 185 sq. mm","BI01010001010000000000000515BI0100001121",145,"Metre",352,null,null,"Excess(+)",1,"Full Conversion","INR",null,null,null,null,null,null,null,null,null,null,null,null,null,null,null,null,null,null,null,null,null,null,null,null,null,null,null,null,null,null,null,null,null,null,null,null,null,null,null,null,51040,51040,"INR  Fifty One Thousand  &Forty  Only",null,null,null,null,null,null,null,null,null,null,null,null,null,null,null,null,null,null,null,null,null,null,null,null,null,null,null,null,null,null,null,null,null,null,null,null,null,null,null,null,null,null,null,null,null,null,null,null,null,null,null,null,null,null,null,null,null,null,null,null,null,null,null,null,null,null,null,null,null,null,null,null,null,null,null,null,null,null,null,null,null,null,null,null,null,null,null,null,null,null,null,null,null,null,null,null,null,null,null,null,null,null,null,null,null,null,null,null,null,null,null,null,null,null,null,null,null,null,null,null,null,null,null,null,null,null,null,null,null,null,null,null,null,null,null,null,null,null,null,null,null,null,null,null,null,null,null,null,null,null,null,null,null,null,null,null,null,null,null,null,null,null,null,null,null,null,null,null,null,null,null,null,null,null,null,null,null,null,null,3.2,"Above 95 sq. mm and upto 185 sq. mm","BI01010001010000000000000515BI0100001121",145,"Metre","Supplying, Conveying and fixing spls. Including eart","item1",123.223,"Nos"]
[4,"Laying of one number PVC insulated and PVC sheathed / XLPE power cable of 1.1 KV grade of following size in the existing RCC/ HUME/ METAL pipe as required.\nAbove 95 sq. mm and upto 185 sq. mm","BI01010001010000000000000515BI0100001123",77,"Metre",64,null,null,"Excess(+)",1,"Full Conversion","INR",null,null,null,null,null,null,null,null,null,null,null,null,null,null,null,null,null,null,null,null,null,null,null,null,null,null,null,null,null,null,null,null,null,null,null,null,null,null,null,null,4928,4928,"INR  Four Thousand Nine Hundred & Twenty Eight  Only",null,null,null,null,null,null,null,null,null,null,null,null,null,null,null,null,null,null,null,null,null,null,null,null,null,null,null,null,null,null,null,null,null,null,null,null,null,null,null,null,null,null,null,null,null,null,null,null,null,null,null,null,null,null,null,null,null,null,null,null,null,null,null,null,null,null,null,null,null,null,null,null,null,null,null,null,null,null,null,null,null,null,null,null,null,null,null,null,null,null,null,null,null,null,null,null,null,null,null,null,null,null,null,null,null,null,null,null,null,null,null,null,null,null,null,null,null,null,null,null,null,null,null,null,null,null,null,null,null,null,null,null,null,null,null,null,null,null,null,null,null,null,null,null,null,null,null,null,null,null,null,null,null,null,null,null,null,null,null,null,null,null,null,null,null,null,null,null,null,null,null,null,null,null,null,null,null,null,null,4,"Laying of one number PVC insulated and PVC sheathed / XLPE power cable of 1.1 KV grade of following size in the existing RCC/ HUME/ METAL pipe as required.\nAbove 95 sq. mm and upto 185 sq. mm","BI01010001010000000000000515BI0100001123",77,"Metre","Construction of chamber for 100mm sluices valve","item3",10,"Nos"]
[5.0999999999999996,"Supplying  of following sizes one Number XLPE  insulated, PVC outer sheathed, armoured with galvanized round steel wire or steel strip cables with stranded aluminium conductor suitable for rated voltage of 1.1KV grade , ISI marked conforming to IS:7098 / (Pt.I) / 1988 with amendment no. 1 of following sizes in following manner. Make- Gloster,Polycab KEI\n3.5 core 70 sq. mm","BI01010001010000000000000515BI0100001125",106,"Mtr",818,null,null,"Excess(+)",{"$f":"IF(I21=\"Less(-)\",-1,1)","v":1},"Full Conversion","INR",null,null,null,null,null,null,null,null,null,null,null,null,null,null,null,null,null,null,null,null,null,null,null,null,null,null,null,null,null,null,null,null,null,null,null,null,null,null,null,null,{"$f":"total_amount_ba($B$2,$D$2,D21,F21,J21,K21,M21)","v":86708},{"$f":"BA21+SUM(N21:AZ21)","v":86708},{"$f":"SpellNumber(L21,BB21)","v":"INR  Eighty Six Thousand Seven Hundred & Eight  Only"},null,null,null,null,null,null,null,null,null,null,null,null,null,null,null,null,null,null,null,null,null,null,null,null,null,null,null,null,null,null,null,null,null,null,null,null,null,null,null,null,null,null,null,null,null,null,null,null,null,null,null,null,null,null,null,null,null,null,null,null,null,null,null,null,null,null,null,null,null,null,null,null,null,null,null,null,null,null,null,null,null,null,null,null,null,null,null,null,null,null,null,null,null,null,null,null,null,null,null,null,null,null,null,null,null,null,null,null,null,null,null,null,null,null,null,null,null,null,null,null,null,null,null,null,null,null,null,null,null,null,null,null,null,null,null,null,null,null,null,null,null,null,null,null,null,null,null,null,null,null,null,null,null,null,null,null,null,null,null,null,null,null,null,null,null,null,null,null,null,null,null,null,null,null,null,null,null,null,null,5.0999999999999996,"Supplying  of following sizes one Number XLPE  insulated, PVC outer sheathed, armoured with galvanized round steel wire or steel strip cables with stranded aluminium conductor suitable for rated voltage of 1.1KV grade , ISI marked conforming to IS:7098 / (Pt.I) / 1988 with amendment no. 1 of following sizes in following manner. Make- Gloster,Polycab KEI\n3.5 core 70 sq. mm","BI01010001010000000000000515BI0100001125",106,"Mtr","Construction of chamber for 100mm sluice plates","item2",213,"Nos"]
[5.2,"3.5 core 120 sq. mm","BI01010001010000000000000515BI0100001126",170,"Mtr",1255,null,null,"Excess(+)",{"$f":"IF(I22=\"Less(-)\",-1,1)","v":1},"Full Conversion","INR",null,null,null,null,null,null,null,null,null,null,null,null,null,null,null,null,null,null,null,null,null,null,null,null,null,null,null,null,null,null,null,null,null,null,null,null,null,null,null,null,{"$f":"total_amount_ba($B$2,$D$2,D22,F22,J22,K22,M22)","v":213350},{"$f":"BA22+SUM(N22:AZ22)","v":213350},{"$f":"SpellNumber(L22,BB22)","v":"INR  Two Lakh Thirteen Thousand Three Hundred & Fifty  Only"},null,null,null,null,null,null,null,null,null,null,null,null,null,null,null,null,null,null,null,null,null,null,null,null,null,null,null,null,null,null,null,null,null,null,null,null,null,null,null,null,null,null,null,null,null,null,null,null,null,null,null,null,null,null,null,null,null,null,null,null,null,null,null,null,null,null,null,null,null,null,null,null,null,null,null,null,null,null,null,null,null,null,null,null,null,null,null,null,null,null,null,null,null,null,null,null,null,null,null,null,null,null,null,null,null,null,null,null,null,null,null,null,null,null,null,null,null,null,null,null,null,null,null,null,null,null,null,null,null,null,null,null,null,null,null,null,null,null,null,null,null,null,null,null,null,null,null,null,null,null,null,null,null,null,null,null,null,null,null,null,null,null,null,null,null,null,null,null,null,null,null,null,null,null,null,null,null,null,null,5.2,"3.5 core 120 sq. mm","BI01010001010000000000000515BI0100001126",170,"Mtr","Construction of chamber for 100mm sluices valve","item3",10,"Nos"]
[5.3,"3.5 core 185 sq. mm","BI01010001010000000000000515BI0100001127",52,"Mtr",1492,null,null,"Excess(+)",{"$f":"IF(I23=\"Less(-)\",-1,1)","v":1},"Full Conversion","INR",null,null,null,null,null,null,null,null,null,null,null,null,null,null,null,null,null,null,null,null,null,null,null,null,null,null,null,null,null,null,null,null,null,null,null,null,null,null,null,null,{"$f":"total_amount_ba($B$2,$D$2,D23,F23,J23,K23,M23)","v":77584},{"$f":"BA23+SUM(N23:AZ23)","v":77584},{"$f":"SpellNumber(L23,BB23)","v":"INR  Seventy Seven Thousand Five Hundred & Eighty Four  Only"},null,null,null,null,null,null,null,null,null,null,null,null,null,null,null,null,null,null,null,null,null,null,null,null,null,null,null,null,null,null,null,null,null,null,null,null,null,null,null,null,null,null,null,null,null,null,null,null,null,null,null,null,null,null,null,null,null,null,null,null,null,null,null,null,null,null,null,null,null,null,null,null,null,null,null,null,null,null,null,null,null,null,null,null,null,null,null,null,null,null,null,null,null,null,null,null,null,null,null,null,null,null,null,null,null,null,null,null,null,null,null,null,null,null,null,null,null,null,null,null,null,null,null,null,null,null,null,null,null,null,null,null,null,null,null,null,null,null,null,null,null,null,null,null,null,null,null,null,null,null,null,null,null,null,null,null,null,null,null,null,null,null,null,null,null,null,null,null,null,null,null,null,null,null,null,null,null,null,null,5.3,"3.5 core 185 sq. mm","BI01010001010000000000000515BI0100001127",52,"Mtr","Supplying, Conveying and fixing spls. Including ea","item4",10,"Nos"]
[6,"Supplying, installing, testing and commissioning of following capacity TPN tap off box made of 1.6mm thick sheet steel enclosure duly painted with powder coating on existing rising mains complete with TPN disconnector FSU and HRC fuses, connections, earthing etc. as required 200Amp. Make- L&T, Legarand & Siemence or equilent.","BI01010001010000000000000515BI0100001128",1,"Nos.",17382,null,null,"Excess(+)",{"$f":"IF(I24=\"Less(-)\",-1,1)","v":1},"Full Conversion","INR",null,null,null,null,null,null,null,null,null,null,null,null,null,null,null,null,null,null,null,null,null,null,null,null,null,null,null,null,null,null,null,null,null,null,null,null,null,null,null,null,{"$f":"total_amount_ba($B$2,$D$2,D24,F24,J24,K24,M24)","v":17382},{"$f":"BA24+SUM(N24:AZ24)","v":17382},{"$f":"SpellNumber(L24,BB24)","v":"INR  Seventeen Thousand Three Hundred & Eighty Two  Only"},null,null,null,null,null,null,null,null,null,null,null,null,null,null,null,null,null,null,null,null,null,null,null,null,null,null,null,null,null,null,null,null,null,null,null,null,null,null,null,null,null,null,null,null,null,null,null,null,null,null,null,null,null,null,null,null,null,null,null,null,null,null,null,null,null,null,null,null,null,null,null,null,null,null,null,null,null,null,null,null,null,null,null,null,null,null,null,null,null,null,null,null,null,null,null,null,null,null,null,null,null,null,null,null,null,null,null,null,null,null,null,null,null,null,null,null,null,null,null,null,null,null,null,null,null,null,null,null,null,null,null,null,null,null,null,null,null,null,null,null,null,null,null,null,null,null,null,null,null,null,null,null,null,null,null,null,null,null,null,null,null,null,null,null,null,null,null,null,null,null,null,null,null,null,null,null,null,null,null,6,"Supplying, installing, testing and commissioning of following capacity TPN tap off box made of 1.6mm thick sheet steel enclosure duly painted with powder coating on existing rising mains complete with TPN disconnector FSU and HRC fuses, connections, earthing etc. as required 200Amp. Make- L&T, Legarand & Siemence or equilent.","BI01010001010000000000000515BI0100001128",1,"Nos.","Construction of chamber for 100mm sluice plates","item5",10,"Nos"]
[7,"Supplying and jointing kit of 3.5x300 sqmm LT Power cable. ","BI01010001010000000000000515BI0100001129",2,"Nos.",15500,null,null,"Excess(+)",{"$f":"IF(I25=\"Less(-)\",-1,1)","v":1},"Full Conversion","INR",null,null,null,null,null,null,null,null,null,null,null,null,null,null,null,null,null,null,null,null,null,null,null,null,null,null,null,null,null,null,null,null,null,null,null,null,null,null,null,null,{"$f":"total_amount_ba($B$2,$D$2,D25,F25,J25,K25,M25)","v":31000},{"$f":"BA25+SUM(N25:AZ25)","v":31000},{"$f":"SpellNumber(L25,BB25)","v":"INR  Thirty One Thousand    Only"},null,null,null,null,null,null,null,null,null,null,null,null,null,null,null,null,null,null,null,null,null,null,null,null,null,null,null,null,null,null,null,null,null,null,null,null,null,null,null,null,null,null,null,null,null,null,null,null,null,null,null,null,null,null,null,null,null,null,null,null,null,null,null,null,null,null,null,null,null,null,null,null,null,null,null,null,null,null,null,null,null,null,null,null,null,null,null,null,null,null,null,null,null,null,null,null,null,null,null,null,null,null,null,null,null,null,null,null,null,null,null,null,null,null,null,null,null,null,null,null,null,null,null,null,null,null,null,null,null,null,null,null,null,null,null,null,null,null,null,null,null,null,null,null,null,null,null,null,null,null,null,null,null,null,null,null,null,null,null,null,null,null,null,null,null,null,null,null,null,null,null,null,null,null,null,null,null,null,null,7,"Supplying and jointing kit of 3.5x300 sqmm LT Power cable. ","BI01010001010000000000000515BI0100001129",2,"Nos.","Construction of chamber for 100mm sluice plates","item5",10,"Nos"]
["Total in Figures",null,null,null,null,null,null,null,null,null,null,null,null,null,null,null,null,null,null,null,null,null,null,null,null,null,null,null,null,null,null,null,null,null,null,null,null,null,null,null,null,null,null,null,null,null,null,null,null,null,null,null,{"$f":"SUM(BA13:BA25)","v":524109},{"$f":"SUM(BB13:BB25)","v":524109},{"$f":"SpellNumber($E$2,BB26)","v":"INR  Five Lakh Twenty Four Thousand One Hundred & Nine  Only"},null,null,null,null,null,null,null,null,null,null,null,null,null,null,null,null,null,null,null,null,null,null,null,null,null,null,null,null,null,null,null,null,null,null,null,null,null,null,null,null,null,null,null,null,null,null,null,null,null,null,null,null,null,null,null,null,null,null,null,null,null,null,null,null,null,null,null,null,null,null,null,null,null,null,null,null,null,null,null,null,null,null,null,null,null,null,null,null,null,null,null,null,null,null,null,null,null,null,null,null,null,null,null,null,null,null,null,null,null,null,null,null,null,null,null,null,null,null,null,null,null,null,null,null,null,null,null,null,null,null,null,null,null,null,null,null,null,null,null,null,null,null,null,null,null,null,null,null,null,null,null,null,null,null,null,null,null,null,null,null,null,null,null,null,null,null,null,null,null,null,null,null,null,null,null,null,null,null,null,null,null,null,null,4,"Construction of chamber for 100mm sluice plates","item5",10,"Nos"]
["Quoted Rate in Figures",null,null,null,"Select",null,null,null,null,null,null,null,null,null,null,null,null,null,null,null,null,null,null,null,null,null,null,null,null,null,null,null,null,null,null,null,null,null,null,null,null,null,null,null,null,null,null,null,null,null,null,null,{"$f":"IF(ISBLANK(F27),0,IF(E27=\"Excess (+)\",ROUND(BA26+(BA26*F27),2),IF(E27=\"Less (-)\",ROUND(BA26+(BA26*F27*(-1)),2),IF(E27=\"At Par\",BA26,0))))","v":0},{"$f":"ROUND(BA27,0)","v":0},{"$f":"SpellNumber($E$2,BB27)","v":"INR Zero Only"}]
["Quoted Rate in Words",null,{"$f":"SpellNumber($E$2,BB27)","v":"INR Zero Only"}]

{"sheet":"Macros","index":1,"n_rows":6,"n_cols":5,"rows_kept":6,"cut":false,"hidden":false,"merged":[[5,4,13,10]]}
[]
[]
[]
[]
[]
[null,null,null,null,"Please Enable Macros to View BoQ information"]